fUST/lending_fUST_20250611
["ID","MTS","AMOUNT","RATE_DAILY","PERIOD"]
[365285614,1749579040950,-460.0,0.00022461,4]
[365285616,1749579040959,-460.0,0.00022461,4]
[365285618,1749579040969,-440.0,0.00022461,4]
[365285620,1749579040978,-460.0,0.00022461,4]
[365285622,1749579040989,-2439.01,0.00022461,4]
[365285624,1749579040998,-459.85,0.00022461,4]
[365285626,1749579041007,-555.09,0.00022461,4]
[365285628,1749579041017,-1350.3,0.00022461,4]
[365285630,1749579041027,-460.0,0.00022461,4]
[365285632,1749579041036,-460.0,0.00022461,4]
[365285634,1749579041046,-525.47,0.00022461,4]
[365285636,1749579041056,-460.0,0.00022461,4]
[365285638,1749579041065,-460.0,0.00022461,2]
[365285640,1749579041074,-460.0,0.00022461,4]
[365285642,1749579041083,-460.0,0.00022461,4]
[365285644,1749579041094,-460.0,0.00022461,4]
[365285646,1749579041103,-930.12,0.00022461,4]
[365285648,1749579041112,-460.0,0.00022461,4]
[365285650,1749579041122,-400.0,0.00022461,4]
[365285652,1749579041131,-469.23,0.00022461,4]
[365285654,1749579041141,-460.0,0.00022461,4]
[365285656,1749579041150,-460.0,0.00022461,4]
[365285658,1749579041160,-518.09,0.00022461,4]
[365285660,1749579041169,-460.0,0.00022463,4]
[365285662,1749579041179,-241.15,0.00022463,4]
[365285664,1749579041188,-400.0,0.00022465,4]
[365285666,1749579041198,-500.0,0.00022479,2]
[365285668,1749579041207,-416.82285666,0.00022521,7]
[365285670,1749579041216,-286.66120188,0.00022568,2]
[365285672,1749579041226,-416.82285666,0.00022624,7]
[365285674,1749579041236,-3000.0,0.000227,2]
[365285676,1749579041250,-3000.0,0.0002271,2]
[365285678,1749579041263,-3000.0,0.0002272,2]
[365285680,1749579041284,-834.9046531,0.00022724,2]
[365285682,1749579041299,-160.0,0.00022724,2]
[365285684,1749579041309,-160.0,0.00022724,2]
[365285686,1749579041318,-213.1263252,0.00022724,2]
[365285688,1749579041328,-160.0,0.00022724,2]
[365285690,1749579041337,-160.0,0.00022724,2]
[365285692,1749579041346,-424.12530924,0.00022724,2]
[365285693,1749579041356,-160.0,0.00022724,2]
[365285694,1749579041366,-416.82285666,0.00022728,7]
[365285695,1749579041375,-3000.0,0.0002273,2]
[365285696,1749579041385,-681.1,0.00022734,4]
[365285697,1749579041399,-847.1,0.00022734,4]
[365285698,1749579041408,-160.3,0.00022734,4]
[365285699,1749579041417,-743.4,0.00022734,4]
[365285700,1749579041427,-665.42,0.00022734,4]
[365285701,1749579041436,-648.52,0.00022734,4]
[365285702,1749579041447,-864.23,0.00022734,4]
[365285703,1749579041457,-460.0,0.00022734,4]
[365285704,1749579041466,-405.10432001,0.00022734,2]
[365285705,1749579041476,-535.9398668,0.00022734,2]
[365285706,1749579041486,-460.0,0.00022734,4]
[365285707,1749579041495,-460.0,0.00022735,4]
[365285708,1749579041505,-1808.06,0.00022735,4]
[365285709,1749579041515,-360.0,0.00022735,4]
[365285710,1749579041524,-460.0,0.00022735,4]
[365285711,1749579041534,-460.0,0.00022735,4]
[365285712,1749579041546,-460.0,0.00022735,4]
[365285713,1749579041556,-460.0,0.00022735,4]
[365285715,1749579041565,-2439.01,0.00022735,4]
[365285716,1749579041575,-555.09,0.00022735,4]
[365285718,1749579041584,-1350.3,0.00022735,4]
[365285720,1749579041594,-460.0,0.00022735,4]
[365285722,1749579041603,-460.0,0.00022735,4]
[365285725,1749579041614,-525.47,0.00022735,4]
[365285727,1749579041623,-460.0,0.00022735,4]
[365285729,1749579041632,-529.86,0.00022735,2]
[365285731,1749579041642,-377.69251106,0.00022735,4]
[365285733,1749579041651,-460.0,0.00022735,4]
[365285735,1749579041660,-460.0,0.00022735,4]
[365285737,1749579041669,-930.12,0.00022735,4]
[365285739,1749579041679,-360.0,0.00022735,4]
[365285741,1749579041689,-469.23,0.00022735,4]
[365285743,1749579041699,-400.0,0.00022735,4]
[365285745,1749579041708,-460.0,0.00022735,4]
[365285747,1749579041718,-340.0,0.00022737,4]
[365285749,1749579041727,-349.29758095,0.00022765,2]
[365285751,1749579041736,-416.82285666,0.00022831,8]
[365285752,1749579041745,-416.82285666,0.00022934,8]
[365285755,1749579041755,-1000.0,0.00023,23]
[365285757,1749579041765,-681.1,0.00023008,4]
[365285759,1749579041775,-847.1,0.00023008,4]
[365285761,1749579041784,-743.4,0.00023008,4]
[365285763,1749579041794,-665.42,0.00023008,4]
[365285765,1749579041806,-648.52,0.00023008,4]
[365285767,1749579041817,-864.23,0.00023008,4]
[365285769,1749579041827,-460.0,0.00023008,4]
[365285780,1749579041924,-460.0,0.00023008,4]
[365285782,1749579041946,-460.0,0.00023009,4]
[365285784,1749579041956,-1808.06,0.00023009,4]
[365285786,1749579041966,-460.0,0.00023009,4]
[365285788,1749579041975,-460.0,0.00023009,4]
[365285790,1749579041985,-460.0,0.00023009,4]
[365285792,1749579041995,-460.0,0.00023009,4]
[365285794,1749579042006,-2439.01,0.00023009,4]
[365285797,1749579042017,-555.09,0.00023009,4]
[365285799,1749579042027,-1350.3,0.00023009,4]
[365285801,1749579042037,-380.0,0.00023009,4]
[365285803,1749579042047,-460.0,0.00023009,4]
[365285805,1749579042057,-525.47,0.00023009,4]
[365285807,1749579042067,-460.0,0.00023009,4]
[365285809,1749579042076,-460.0,0.00023009,4]
[365285811,1749579042086,-460.0,0.00023009,4]
[365285812,1749579042095,-930.12,0.00023009,4]
[365285814,1749579042105,-469.23,0.00023009,4]
[365285816,1749579042114,-400.0,0.00023009,4]
[365285818,1749579042124,-416.82285666,0.00023038,8]
[365285820,1749579042134,-286.66120187,0.00023117,2]
[365285823,1749579042144,-416.82285666,0.00023141,8]
[365285825,1749579042155,-500.0,0.00023215,2]
[365285827,1749579042164,-420.0,0.0002323,2]
[365285829,1749579042174,-229.6792923,0.00023231,2]
[365285832,1749579042198,-160.0,0.00023231,2]
[365285834,1749579042208,-416.82285666,0.00023245,8]
[365285836,1749579042217,-349.29758095,0.00023265,2]
[365285838,1749579042227,-681.1,0.00023282,4]
[365285840,1749579042237,-847.1,0.00023282,4]
[365285842,1749579042247,-743.4,0.00023282,4]
[365285844,1749579042257,-665.42,0.00023282,4]
[365285846,1749579042268,-648.52,0.00023282,4]
[365285848,1749579042282,-864.23,0.00023282,4]
[365285850,1749579042293,-460.0,0.00023282,4]
[365285852,1749579042304,-460.0,0.00023282,4]
[365285855,1749579042315,-460.0,0.00023283,4]
[365285857,1749579042325,-1808.06,0.00023283,4]
[365285860,1749579042335,-460.0,0.00023283,4]
[365285862,1749579042345,-460.0,0.00023283,4]
[365285864,1749579042356,-460.0,0.00023283,4]
[365285866,1749579042368,-460.0,0.00023283,4]
[365285868,1749579042379,-2439.01,0.00023283,4]
[365285870,1749579042390,-555.09,0.00023283,4]
[365285872,1749579042401,-1350.3,0.00023283,4]
[365285874,1749579042411,-460.0,0.00023283,4]
[365285876,1749579042422,-525.47,0.00023283,4]
[365285878,1749579042432,-460.0,0.00023283,4]
[365285880,1749579042449,-460.0,0.00023283,4]
[365285882,1749579042459,-930.12,0.00023283,4]
[365285884,1749579042468,-460.0,0.00023283,4]
[365285887,1749579042478,-469.23,0.00023283,4]
[365285889,1749579042488,-160.0,0.00023284,2]
[365285891,1749579042498,-416.82285666,0.00023348,9]
[365285893,1749579042507,-416.82285666,0.00023452,9]
[365285894,1749579042516,-500.0,0.00023479,4]
[365285896,1749579042525,-281.16332978,0.00023479,4]
[365285899,1749579042535,-500.0,0.00023479,4]
[365285901,1749579042545,-151.0,0.00023479,4]
[365285903,1749579042554,-500.0,0.00023479,4]
[365285905,1749579042564,-500.0,0.00023479,4]
[365285907,1749579042574,-151.0,0.00023479,4]
[365285910,1749579042585,-500.0,0.00023479,4]
[365285911,1749579042595,-151.0,0.00023479,4]
[365285914,1749579042606,-500.0,0.00023479,4]
[365285916,1749579042616,-151.0,0.00023479,4]
[365285918,1749579042626,-5000.0,0.00023484,2]
[365285920,1749579042635,-207.4,0.00023484,2]
[365285922,1749579042645,-500.0,0.00023506,4]
[365285924,1749579042654,-500.0,0.00023506,4]
[365285925,1749579042664,-151.0,0.00023506,4]
[365285927,1749579042673,-500.0,0.00023506,4]
[365285929,1749579042683,-500.0,0.00023506,4]
[365285931,1749579042697,-500.0,0.00023506,4]
[365285933,1749579042707,-151.0,0.00023506,4]
[365285935,1749579042717,-500.83773021,0.00023506,4]
[365285937,1749579042727,-151.0,0.00023506,4]
[365285939,1749579042736,-500.0,0.00023534,4]
[365285941,1749579042746,-500.0,0.00023534,4]
[365285943,1749579042755,-151.0,0.00023534,4]
[365285945,1749579042765,-500.0,0.00023534,4]
[365285947,1749579042775,-500.0,0.00023534,4]
[365285950,1749579042786,-500.0,0.00023534,4]
[365285951,1749579042796,-151.0,0.00023534,4]
[365285953,1749579042805,-198.0,0.00023534,4]
[365285955,1749579042815,-416.82285666,0.00023555,9]
[365285957,1749579042824,-681.1,0.00023556,4]
[365285959,1749579042834,-847.1,0.00023556,4]
[365285961,1749579042843,-743.4,0.00023556,4]
[365285963,1749579042854,-665.42,0.00023556,4]
[365285965,1749579042864,-648.52,0.00023556,4]
[365285968,1749579042874,-864.23,0.00023556,4]
[365285970,1749579042883,-460.0,0.00023556,4]
[365285972,1749579042893,-460.0,0.00023556,4]
[365285974,1749579042902,-460.0,0.00023557,4]
[365285976,1749579042911,-1808.06,0.00023557,4]
[365285978,1749579042923,-460.0,0.00023557,4]
[365285980,1749579042932,-460.0,0.00023557,4]
[365285982,1749579042946,-460.0,0.00023557,4]
[365285984,1749579042956,-460.0,0.00023557,4]
[365285986,1749579042966,-2439.01,0.00023557,4]
[365285988,1749579042975,-555.09,0.00023557,4]
[365285990,1749579042985,-1350.3,0.00023557,4]
[365285992,1749579042995,-460.0,0.00023557,4]
[365285994,1749579043004,-525.47,0.00023557,4]
[365285996,1749579043013,-460.0,0.00023557,4]
[365285998,1749579043023,-460.0,0.00023557,4]
[365286000,1749579043032,-930.12,0.00023557,4]
[365286002,1749579043046,-460.0,0.00023557,4]
[365286004,1749579043060,-469.23,0.00023557,4]
[365286006,1749579043070,-151.0,0.00023561,4]
[365286008,1749579043079,-151.0,0.00023589,4]
[365286010,1749579043089,-243.70160215,0.00023616,4]
[365286012,1749579043099,-1564.51,0.00023638,2]
[365286014,1749579043109,-416.82285666,0.00023659,9]
[365286016,1749579043118,-286.66120187,0.00023665,2]
[365286018,1749579043127,-416.82285666,0.00023762,9]
[365286020,1749579043136,-349.29758095,0.00023765,2]
[365286022,1749579043145,-1470.04,0.000238,2]
[365286024,1749579043154,-594.53,0.000238,7]
[365286026,1749579043163,-151.0,0.00023814,7]
[365286028,1749579043172,-681.1,0.0002383,4]
[365286030,1749579043182,-847.1,0.0002383,4]
[365286032,1749579043196,-743.4,0.0002383,4]
[365286034,1749579043205,-665.42,0.0002383,4]
[365286036,1749579043215,-648.52,0.0002383,4]
[365286038,1749579043224,-864.23,0.0002383,4]
[365286040,1749579043233,-460.0,0.0002383,4]
[365286042,1749579043242,-460.0,0.0002383,4]
[365286044,1749579043251,-460.0,0.00023831,4]
[365286046,1749579043260,-1808.06,0.00023831,4]
[365286048,1749579043274,-460.0,0.00023831,4]
[365286050,1749579043284,-460.0,0.00023831,4]
[365286052,1749579043296,-460.0,0.00023831,4]
[365286054,1749579043306,-460.0,0.00023831,4]
[365286056,1749579043316,-2439.01,0.00023831,4]
[365286058,1749579043325,-555.09,0.00023831,4]
[365286060,1749579043334,-1350.3,0.00023831,4]
[365286062,1749579043344,-460.0,0.00023831,4]
[365286064,1749579043357,-525.47,0.00023831,4]
[365286067,1749579043367,-460.0,0.00023831,4]
[365286069,1749579043376,-460.0,0.00023831,4]
[365286071,1749579043385,-930.12,0.00023831,4]
[365286073,1749579043394,-460.0,0.00023831,4]
[365286075,1749579043404,-469.23,0.00023831,4]
[365286077,1749579043413,-416.82285666,0.00023866,10]
[365286079,1749579043422,-416.82285666,0.00023969,10]
[365286081,1749579043431,-600.0,0.00024,2]
[365286083,1749579043443,-1000.0,0.00024,24]
[365286085,1749579043452,-151.0,0.00024023,7]
[365286087,1749579043462,-5000.0,0.00024032,2]
[365286089,1749579043471,-416.82285666,0.00024072,10]
[365286091,1749579043481,-681.1,0.00024104,4]
[365286093,1749579043490,-847.1,0.00024104,4]
[365286095,1749579043500,-743.4,0.00024104,4]
[365286097,1749579043510,-665.42,0.00024104,4]
[365286099,1749579043519,-648.52,0.00024104,4]
[365286101,1749579043530,-864.23,0.00024104,4]
[365286103,1749579043539,-380.0,0.00024104,4]
[365286105,1749579043549,-460.0,0.00024104,4]
[365286107,1749579043558,-495.93,0.00024105,4]
[365286109,1749579043567,-1808.06,0.00024105,4]
[365286111,1749579043576,-460.0,0.00024105,4]
[365286113,1749579043585,-380.0,0.00024105,4]
[365286115,1749579043594,-380.0,0.00024105,4]
[365286117,1749579043604,-460.0,0.00024105,4]
[365286119,1749579043614,-2439.01,0.00024105,4]
[365286121,1749579043623,-555.09,0.00024105,4]
[365286123,1749579043632,-1350.3,0.00024105,4]
[365286125,1749579043641,-460.0,0.00024105,4]
[365286127,1749579043650,-525.47,0.00024105,4]
[365286129,1749579043660,-460.0,0.00024105,4]
[365286131,1749579043669,-380.0,0.00024105,4]
[365286133,1749579043679,-930.12,0.00024105,4]
[365286135,1749579043688,-460.0,0.00024105,4]
[365286137,1749579043699,-469.23,0.00024105,4]
[365286139,1749579043709,-416.82285666,0.00024176,10]
[365286141,1749579043719,-286.66120187,0.00024214,2]
[365286143,1749579043728,-151.0,0.00024232,7]
[365286145,1749579043737,-349.29758095,0.00024265,2]
[365286147,1749579043749,-416.82285666,0.00024279,10]
[365286149,1749579043758,-963.711261,0.0002436,3]
[365286151,1749579043767,-681.1,0.00024378,4]
[365286153,1749579043777,-847.1,0.00024378,4]
[365286155,1749579043786,-743.4,0.00024378,4]
[365286157,1749579043796,-665.42,0.00024378,4]
[365286159,1749579043806,-648.52,0.00024378,4]
[365286161,1749579043816,-864.23,0.00024378,4]
[365286163,1749579043825,-379.57786558,0.00024378,4]
[365286165,1749579043835,-1808.06,0.00024379,4]
[365286167,1749579043844,-460.0,0.00024379,4]
[365286169,1749579043853,-460.0,0.00024379,4]
[365286171,1749579043863,-2439.01,0.00024379,4]
[365286173,1749579043873,-555.09,0.00024379,4]
[365286175,1749579043882,-1350.3,0.00024379,4]
[365286177,1749579043892,-460.0,0.00024379,4]
[365286179,1749579043902,-525.47,0.00024379,4]
[365286181,1749579043911,-460.0,0.00024379,4]
[365286183,1749579043921,-930.12,0.00024379,4]
[365286185,1749579043930,-460.0,0.00024379,4]
[365286187,1749579043941,-469.23,0.00024379,4]
[365286189,1749579043950,-416.82285666,0.00024383,11]
[365286191,1749579043960,-151.0,0.0002444,7]
[365286193,1749579043970,-416.82285666,0.00024486,11]
[365286195,1749579043979,-216.675,0.00024494,2]
[365286197,1749579043988,-963.0,0.00024494,2]
[365286199,1749579043998,-653.0,0.00024494,2]
[365286201,1749579044008,-2160.0,0.00024494,2]
[365286203,1749579044017,-405.0,0.00024494,2]
[365286205,1749579044027,-2200.0,0.00024513,2]
[365286207,1749579044037,-5000.0,0.0002458,2]
[365286209,1749579044046,-416.82285666,0.0002459,11]
[365286211,1749579044056,-325.2543078,0.000246,2]
[365286213,1749579044065,-200.0,0.000246,3]
[365286215,1749579044074,-151.0,0.00024649,7]
[365286217,1749579044083,-681.1,0.00024652,4]
[365286219,1749579044092,-847.1,0.00024652,4]
[365286222,1749579044102,-743.4,0.00024652,4]
[365286224,1749579044112,-665.42,0.00024652,4]
[365286226,1749579044122,-648.52,0.00024652,4]
[365286228,1749579044140,-864.23,0.00024652,4]
[365286230,1749579044149,-1808.06,0.00024653,4]
[365286232,1749579044159,-460.0,0.00024653,4]
[365286234,1749579044168,-460.0,0.00024653,4]
[365286236,1749579044177,-2439.01,0.00024653,4]
[365286238,1749579044187,-555.09,0.00024653,4]
[365286240,1749579044198,-1350.3,0.00024653,4]
[365286242,1749579044210,-460.0,0.00024653,4]
[365286244,1749579044221,-525.47,0.00024653,4]
[365286246,1749579044231,-460.0,0.00024653,4]
[365286248,1749579044240,-930.12,0.00024653,4]
[365286250,1749579044250,-460.0,0.00024653,4]
[365286252,1749579044259,-469.23,0.00024653,4]
[365286254,1749579044269,-416.82285666,0.00024693,11]
[365286256,1749579044282,-1000.0,0.000247,2]
[365286258,1749579044291,-286.66120187,0.00024762,2]
[365286260,1749579044300,-349.29758095,0.00024765,2]
[365286262,1749579044310,-592.0,0.00024781,2]
[365286264,1749579044321,-416.82285666,0.00024797,11]
[365286266,1749579044330,-2000.0,0.000248,2]
[365286268,1749579044339,-2000.0,0.000248,2]
[365286270,1749579044349,-2000.0,0.000248,2]
[365286272,1749579044359,-500.0,0.000248,120]
[365286274,1749579044368,-364.9974737,0.00024849,2]
[365286276,1749579044377,-215.0738,0.00024853,2]
[365286278,1749579044387,-155.0,0.00024856,2]
[365286280,1749579044398,-3836.83268083,0.00024856,2]
[365286282,1749579044408,-151.0,0.00024858,15]
[365286284,1749579044418,-500.0,0.00024859,2]
[365286286,1749579044427,-500.0,0.00024859,9]
[365286288,1749579044437,-4177.53372404,0.00024865,2]
[365286290,1749579044449,-13176.69109446,0.00024865,2]
[365286292,1749579044460,-332828.3437238,0.00024865,20]
[365286301,1749579044535,-518.09,0.00022735,4]
[365286303,1749579044546,-518.09,0.00023009,4]
[365286305,1749579044556,-518.09,0.00023283,4]
[365286307,1749579044566,-518.09,0.00023557,4]
[365286309,1749579044575,-518.09,0.00023831,4]
[365286311,1749579044585,-518.09,0.00024105,4]
[365286313,1749579044594,-518.09,0.00024379,4]
[365286315,1749579044604,-518.09,0.00024653,4]
[365286328,1749579044724,-4404.77260742,0.00024865,20]
[365286330,1749579044737,-936.99585532,0.00024865,20]
[365286337,1749579044796,-47978.88059242,0.00024865,20]
[365286599,1749579250233,989.5,0.00024862,60]
[365286625,1749579958819,193.035903,0.00013699,2]
[365286676,1749580117063,15788.534619,0.00018,2]
[365286749,1749580232256,-300.0,0.00019561,2]
[365286751,1749580232266,-4381.0921058,0.00019562,2]
[365286753,1749580232275,-11017.6556592,0.00019562,2]
[365286755,1749580232285,-666.0,0.00019621,2]
[365286757,1749580232294,-284.3323209,0.0001982,2]
[365286759,1749580232304,-170.59939254,0.0001982,2]
[365286761,1749580232313,-165.842008,0.00019962,2]
[365286763,1749580232322,-196.4126746,0.00020148,2]
[365286765,1749580232333,-500.7147866,0.00020148,2]
[365286767,1749580232343,-16894.7789318,0.00020148,2]
[365286769,1749580232352,-2225.9632699,0.00020184,2]
[365286771,1749580232362,-193.035903,0.00020187,2]
[365286773,1749580232372,-300.0,0.00020432,2]
[365286775,1749580232381,-50000.0,0.00020432,2]
[365286777,1749580232390,-204.20636683,0.00020724,2]
[365286779,1749580232399,-774.61537955,0.000209,4]
[365286781,1749580232408,-500.0,0.00021029,2]
[365286783,1749580232417,-186.004,0.00021029,2]
[365286785,1749580232427,-774.61537955,0.00021038,4]
[365286787,1749580232436,-460.0,0.00021095,4]
[365286789,1749580232447,-811.02,0.00021095,4]
[365286791,1749580232456,-430.0,0.00021095,4]
[365286793,1749580232465,-460.0,0.00021095,4]
[365286795,1749580232478,-987.77,0.00021095,4]
[365286797,1749580232498,-157.29330944,0.00021095,4]
[365286799,1749580232507,-430.0,0.00021095,4]
[365286801,1749580232515,-460.0,0.00021095,4]
[365286803,1749580232523,-430.0,0.00021095,4]
[365286805,1749580232533,-430.0,0.00021095,4]
[365286807,1749580232542,-400.0,0.00021095,4]
[365286808,1749580232552,-430.0,0.00021095,4]
[365286810,1749580232561,-420.0,0.00021095,4]
[365286812,1749580232571,-400.0,0.00021095,4]
[365286814,1749580232580,-411.35613136,0.00021095,4]
[365286815,1749580232590,-408.98280923,0.00021095,4]
[365286817,1749580232600,-460.0,0.00021095,4]
[365286819,1749580232610,-430.0,0.00021095,4]
[365286821,1749580232619,-430.0,0.00021095,4]
[365286823,1749580232628,-460.0,0.00021095,4]
[365286824,1749580232639,-430.0,0.00021095,4]
[365286825,1749580232650,-774.61537955,0.00021176,4]
[365286827,1749580232659,-218.31098812,0.00021261,2]
[365286828,1749580232668,-321.02963412,0.00021263,2]
[365286830,1749580232678,-420.0,0.0002131,2]
[365286832,1749580232689,-774.61537955,0.00021314,5]
[365286834,1749580232700,-430.0,0.0002136,4]
[365286835,1749580232709,-460.0,0.0002136,4]
[365286841,1749580232719,-430.0,0.0002136,4]
[365286842,1749580232868,-430.0,0.0002136,4]
[365286843,1749580232878,-430.0,0.0002136,4]
[365286844,1749580232887,-817.1,0.0002136,4]
[365286845,1749580232897,-840.41,0.0002136,4]
[365286846,1749580232906,-460.0,0.0002136,4]
[365286847,1749580232915,-460.0,0.0002136,4]
[365286848,1749580232925,-430.0,0.0002136,4]
[365286849,1749580232934,-430.0,0.0002136,4]
[365286850,1749580232944,-430.0,0.0002136,4]
[365286851,1749580232954,-666.15,0.0002136,4]
[365286852,1749580232964,-825.72,0.0002136,4]
[365286853,1749580232973,-596.46221123,0.0002136,4]
[365286854,1749580232983,-460.0,0.0002136,4]
[365286855,1749580232992,-430.0,0.0002136,4]
[365286856,1749580233002,-460.0,0.0002136,4]
[365286857,1749580233011,-205.06,0.0002136,4]
[365286858,1749580233021,-379.19432624,0.00021361,4]
[365286859,1749580233030,-460.0,0.00021361,4]
[365286860,1749580233039,-430.0,0.00021361,4]
[365286861,1749580233049,-430.0,0.00021361,4]
[365286862,1749580233058,-430.0,0.00021361,4]
[365286863,1749580233068,-430.0,0.00021361,4]
[365286864,1749580233078,-430.0,0.00021361,4]
[365286865,1749580233087,-376.30547701,0.00021361,4]
[365286866,1749580233097,-460.0,0.00021361,4]
[365286867,1749580233106,-430.0,0.00021361,4]
[365286868,1749580233116,-430.0,0.00021361,4]
[365286869,1749580233126,-430.0,0.00021361,4]
[365286870,1749580233135,-430.0,0.00021361,4]
[365286871,1749580233144,-430.0,0.00021361,4]
[365286872,1749580233153,-430.0,0.00021361,4]
[365286873,1749580233163,-430.0,0.00021361,4]
[365286874,1749580233172,-430.0,0.00021361,4]
[365286875,1749580233181,-460.0,0.00021361,4]
[365286876,1749580233190,-494.95,0.00021361,4]
[365286877,1749580233201,-430.0,0.00021361,4]
[365286878,1749580233211,-460.0,0.00021361,4]
[365286879,1749580233220,-430.0,0.00021361,4]
[365286880,1749580233230,-460.0,0.00021361,4]
[365286881,1749580233240,-430.0,0.00021361,4]
[365286882,1749580233250,-460.0,0.00021361,4]
[365286883,1749580233259,-430.0,0.00021361,4]
[365286884,1749580233269,-430.0,0.00021361,4]
[365286885,1749580233279,-430.0,0.00021361,4]
[365286886,1749580233288,-430.0,0.00021361,4]
[365286887,1749580233298,-430.0,0.00021361,4]
[365286888,1749580233308,-430.0,0.00021361,4]
[365286889,1749580233318,-460.0,0.00021361,4]
[365286890,1749580233327,-460.0,0.00021361,4]
[365286891,1749580233337,-933.09,0.00021361,4]
[365286892,1749580233346,-430.0,0.00021361,4]
[365286893,1749580233356,-460.0,0.00021361,4]
[365286894,1749580233366,-430.0,0.00021361,4]
[365286895,1749580233375,-460.0,0.00021361,4]
[365286896,1749580233385,-464.36,0.00021361,4]
[365286897,1749580233394,-430.0,0.00021361,4]
[365286898,1749580233404,-430.0,0.00021361,4]
[365286899,1749580233413,-460.0,0.00021361,4]
[365286900,1749580233423,-400.0,0.00021361,4]
[365286901,1749580233432,-460.0,0.00021361,4]
[365286902,1749580233441,-460.0,0.00021361,4]
[365286903,1749580233454,-460.0,0.00021361,4]
[365286904,1749580233466,-460.0,0.00021361,4]
[365286905,1749580233476,-350.0,0.00021362,4]
[365286906,1749580233486,-430.0,0.00021362,4]
[365286907,1749580233495,-458.34631231,0.00021362,4]
[365286908,1749580233504,-460.0,0.00021362,4]
[365286909,1749580233514,-430.0,0.00021362,4]
[365286910,1749580233524,-430.0,0.00021362,4]
[365286911,1749580233534,-430.0,0.00021362,4]
[365286912,1749580233543,-430.0,0.00021362,4]
[365286913,1749580233553,-430.00320769,0.00021362,4]
[365286914,1749580233563,-430.0,0.00021362,4]
[365286915,1749580233572,-430.0,0.00021362,4]
[365286916,1749580233592,-400.0,0.00021362,4]
[365286917,1749580233603,-431.02619174,0.00021362,4]
[365286918,1749580233613,-430.0,0.00021362,4]
[365286919,1749580233624,-460.0,0.00021362,4]
[365286920,1749580233634,-430.0,0.00021362,4]
[365286921,1749580233645,-430.0,0.00021362,4]
[365286922,1749580233658,-430.0,0.00021362,4]
[365286923,1749580233668,-430.0,0.00021362,4]
[365286924,1749580233678,-430.0,0.00021362,4]
[365286925,1749580233689,-500.0,0.00021362,4]
[365286926,1749580233702,-430.0,0.00021362,4]
[365286927,1749580233713,-430.0,0.00021362,4]
[365286928,1749580233722,-571.63206686,0.00021362,4]
[365286929,1749580233734,-430.0,0.00021362,4]
[365286930,1749580233745,-578.93426575,0.00021362,4]
[365286931,1749580233756,-470.0,0.00021362,4]
[365286932,1749580233767,-430.0,0.00021362,4]
[365286933,1749580233777,-430.0,0.00021362,4]
[365286934,1749580233789,-384.20434416,0.00021362,4]
[365286935,1749580233799,-430.0,0.00021362,4]
[365286936,1749580233810,-430.0,0.00021362,4]
[365286937,1749580233820,-430.0,0.00021362,4]